[Event "EYCC Open U18 2018"]
[Site "Riga"]
[Date "2018.08.22"]
[Round "3"]
[White "Kowalski, Igor"]
[Black "Nothnagel, Marian Can"]
[Result "1/2-1/2"]
[ECO "E34"]
[WhiteElo "2294"]
[BlackElo "2338"]
[Annotator "NA"]
[PlyCount "45"]
[EventDate "2018.08.20"]
[EventType "swiss"]
[EventCountry "LAT"]
[SourceTitle "playchess.com"]
[Source "ChessBase"]
[SourceQuality "1"]
[TimeControl "40/5400+30:1800+30"]

1. d4 {[%emt 0:00:00]} Nf6 {[%emt 0:00:00]} 2. c4 {[%emt 0:00:00]} e6 {[%emt 0:00:00]} 3. Nc3 {[%emt 0:00:00]} Bb4 {[%emt 0:00:00]} 4. Qc2 {[%emt 0:00:00]} d5 {[%emt 0:00:00]} 5. cxd5 {[%emt 0:03:45]} Qxd5 {[%emt 0:00:01]} 6. e3 {[%emt 0:04:38] LiveBook: 276 Games} c5 {[%emt 0:01:44]} 7. Bd2 {[%emt 0:00:04]} Bxc3 {[%emt 0:07:26]} 8. Bxc3 {[%emt 0:00:41]} O-O {[%emt 0:01:58]} 9. Nf3 {[%emt 0:02:08]} b6 {[%emt 0:02:50]} 10. dxc5 {[%emt 0:00:47]} Qxc5 {[%emt 0:00:35]} 11. Bd3 {[%emt 0:02:15]} Bb7 {[%emt 0:02:19]} 12. O-O {[%emt 0:08:13]} Nc6 {[%emt 0:06:15]} 13. Qa4 Rad8 {[%emt 0:05:59]} 14. Rfd1 $14 {[%emt 0:24:35]} e5 {[%emt 0:10:08]} 15. Ng5 {[%emt 0:25:45]} Qe7 {[%emt 0:07:58]} 16. Ne4 {[%emt 0:06:18]} Nd5 {[%emt 0:02:00]} 17. Bc4 {[%emt 0:02:03]} Nxc3 {[%emt 0:04:39]} 18. Nxc3 {[%emt 0:00:04]} Rxd1+ {[%emt 0:03:41]} 19. Rxd1 {[%emt 0:00:08]} Rd8 {[%emt 0:00:03]} 20. Rxd8+ {[%emt 0:11:21]} Qxd8 {[%emt 0:00:24]} 21. Bd5 {[%emt 0:00:59]} Qd6 {[%emt 0:01:56]} 22. e4 {[%emt 0:03:40]} g6 {[%emt 0:08:22]} 23. h3 {[%emt 0:00:43]} 1/2-1/2

[Event "EYCC Open U18 2018"]
[Site "Riga"]
[Date "2018.08.22"]
[Round "3"]
[White "Ranaldi, Lucas"]
[Black "Ileana, George"]
[Result "1/2-1/2"]
[ECO "A17"]
[WhiteElo "2291"]
[BlackElo "2324"]
[Annotator "NA"]
[PlyCount "153"]
[EventDate "2018.08.20"]
[EventType "swiss"]
[EventCountry "LAT"]
[SourceTitle "playchess.com"]
[Source "ChessBase"]
[SourceQuality "1"]
[TimeControl "40/5400+30:1800+30"]

1. Nf3 {[%emt 0:00:21]} Nf6 {[%emt 0:00:00]} 2. c4 {[%emt 0:00:13]} e6 {[%emt 0:00:00]} 3. Nc3 {[%emt 0:00:36]} Bb4 {[%emt 0:00:21]} 4. Qc2 {[%emt 0:00:46]} O-O {[%emt 0:00:24]} 5. a3 {[%emt 0:00:44]} Bxc3 {[%emt 0:00:55] LiveBook: 1207 Games} 6. Qxc3 {[%emt 0:00:11]} d6 {[%emt 0:00:17]} 7. e3 {[%emt 0:01:39] A17: English Opening: 1...Nf6 with ...Bb4} (7. b4 e5 8. g3 Bd7 9. d3 e4 10. dxe4 Nxe4 11. Qd4 Re8 12. Bb2 f6 13. Bg2 Nc6 14. Qd5+ Kh8 {½-½ (30) Nihal,S (2551)-Zhigalko,S (2616) Ankara 2018}) 7... Qe7 {[%emt 0:01:40]} 8. Be2 {[%emt 0:02:04]} e5 {[%emt 0:00:14]} 9. d3 $146 {[%emt 0:02:30]} ({Predecessor:} 9. b4 Bg4 10. Bb2 Nbd7 11. d3 b6 12. h3 Be6 13. g4 a5 14. d4 axb4 15. axb4 Rxa1+ 16. Bxa1 {0-1 (39) Duluc,J (2179)-Hauroo,H (2122) Paris 2004}) 9... Bg4 {[%emt 0:00:18]} 10. O-O {[%emt 0:01:18]} c6 {[%emt 0:00:10]} 11. b4 {[%emt 0:02:08]} Nbd7 {[%emt 0:00:28]} 12. Bb2 {[%emt 0:02:50]} Rfe8 {[%emt 0:00:06]} 13. Rfe1 {[%emt 0:05:41]} h6 {[%emt 0:04:41]} 14. h3 {[%emt 0:04:30]} Bf5 {[%emt 0:00:20]} 15. Nd2 {[%emt 0:03:07]} d5 {[%emt 0:01:05]} 16. Rad1 {[%emt 0:09:35]} Qd6 {[%emt 0:02:04]} 17. e4 {[%emt 0:14:53]} Bg6 {[%emt 0:03:48]} 18. Nf1 {[%emt 0:07:46]} (18. exd5 $14 cxd5 19. d4) 18... d4 {[%emt 0:03:01]} 19. Qb3 {[%emt 0:01:10]} c5 {[%emt 0:01:23]} 20. b5 {[%emt 0:02:22]} Nf8 {[%emt 0:01:37]} 21. Nd2 {[%emt 0:15:37]} Qd7 {[%emt 0:01:22]} 22. Bf1 {[%emt 0:02:20]} Bh5 {[%emt 0:04:28]} 23. Ra1 {[%emt 0:03:17]} Ne6 {[%emt 0:00:42]} 24. g3 {[%emt 0:01:02]} Ng5 {[%emt 0:05:42]} 25. Kh2 {[%emt 0:00:11]} Nf3+ {[%emt 0:01:16]} 26. Nxf3 {[%emt 0:00:14]} Bxf3 {[%emt 0:00:03]} 27. Bg2 {[%emt 0:01:31]} Bxg2 {[%emt 0:00:22]} 28. Kxg2 {[%emt 0:00:03]} Nh7 {[%emt 0:00:15]} 29. g4 {[%emt 0:06:57]} ({White should try} 29. Bc1 $11) 29... Re6 {[%emt 0:02:30]} 30. Bc1 {[%emt 0:01:55]} g5 {[%emt 0:00:16]} 31. Bd2 {[%emt 0:01:18]} Nf8 {[%emt 0:00:11]} 32. Rf1 {[%emt 0:01:58]} Ng6 {[%emt 0:00:38]} 33. f3 {[%emt 0:00:33]} Qe7 {[%emt 0:02:07]} 34. Be1 $17 {[%emt 0:02:07]} h5 {[%emt 0:01:16]} 35. Bg3 {[%emt 0:01:03]} Qf6 {[%emt 0:00:28]} 36. Qc2 {[%emt 0:01:45]} Kg7 {[%emt 0:00:47]} 37. a4 {[%emt 0:00:45]} a6 {[%emt 0:01:31]} 38. Qd2 {[%emt 0:00:27]} axb5 {[%emt 0:01:35]} 39. axb5 {[%emt 0:00:17]} Ree8 {[%emt 0:00:53]} 40. Rh1 {[%emt 0:00:00]} h4 {[%emt 0:00:00]} 41. Bh2 {[%emt 0:02:29]} Kh6 {[%emt 0:02:26]} 42. Rhb1 {[%emt 0:07:48]} Rec8 {[%emt 0:01:26]} 43. Rc1 {[%emt 0:02:35]} Rd8 {[%emt 0:01:31]} 44. Rcb1 {[%emt 0:00:30]} Qb6 {[%emt 0:00:16]} 45. Ra2 {[%emt 0:01:30]} Ra7 {[%emt 0:02:06]} 46. Rba1 {[%emt 0:00:31]} Rda8 {[%emt 0:00:04]} 47. Kf2 {[%emt 0:01:15]} f6 {[%emt 0:00:48]} 48. Ke2 {[%emt 0:00:45]} Kg7 {[%emt 0:01:01]} 49. Kd1 {[%emt 0:01:21]} Nf8 {[%emt 0:01:09]} 50. Kc1 {[%emt 0:01:25]} Ne6 {[%emt 0:00:16]} 51. Kb1 {[%emt 0:01:08]} Nc7 {[%emt 0:02:17]} 52. Rxa7 {[%emt 0:02:28]} Rxa7 {[%emt 0:00:58]} 53. Rxa7 {[%emt 0:00:29]} Qxa7 {[%emt 0:00:06]} 54. Qa2 {[%emt 0:00:25]} Qb6 {[%emt 0:00:50]} 55. Kc2 {[%emt 0:00:37]} Kf7 {[%emt 0:00:19]} 56. Qa4 {[%emt 0:01:10]} Ke7 {[%emt 0:01:17]} 57. Bg1 {[%emt 0:01:00]} Kd7 {[%emt 0:00:31]} 58. Bh2 {[%emt 0:03:55]} Kc8 {[%emt 0:01:41]} 59. Bg1 {[%emt 0:00:30]} Kb8 {[%emt 0:00:16]} 60. Bh2 {[%emt 0:02:35]} Qa7 {[%emt 0:02:23]} 61. Kb3 {[%emt 0:00:38]} Qb6 {[%emt 0:00:28]} 62. Kc2 {[%emt 0:00:20]} Qa7 {[%emt 0:01:17]} 63. Kb3 {[%emt 0:00:14]} Qxa4+ {[%emt 0:00:27]} 64. Kxa4 {[%emt 0:00:02]} Ne6 {[%emt 0:00:07]} 65. Ka5 {[%emt 0:00:53]} Kc7 {[%emt 0:00:10]} 66. Ka4 {[%emt 0:00:12]} Kb6 {[%emt 0:00:11]} 67. Kb3 {[%emt 0:01:36]} Ka5 {[%emt 0:00:02]} 68. Ka3 {[%emt 0:00:22]} Nc7 {[%emt 0:00:03]} 69. Bg1 {[%emt 0:00:58]} Ne6 {[%emt 0:02:15]} 70. Bh2 {[%emt 0:00:11]} Kb6 {[%emt 0:00:32]} 71. Ka4 {[%emt 0:00:32]} Kc7 {[%emt 0:00:18]} 72. Kb3 {[%emt 0:00:32]} Kd6 {[%emt 0:00:47]} 73. Ka4 {[%emt 0:00:37]} Nf8 {[%emt 0:02:01]} 74. Bg1 {[%emt 0:00:58]} Kc7 {[%emt 0:00:12]} 75. Bh2 {[%emt 0:00:41]} Ng6 {[%emt 0:01:45]} 76. Kb3 {[%emt 0:00:18]} Kb6 {[%emt 0:00:53]} 77. Ka4 {[%emt 0:00:12]} 1/2-1/2

[Event "EYCC Open U18 2018"]
[Site "Riga"]
[Date "2018.08.24"]
[Round "5"]
[White "Erenberg, Ariel"]
[Black "Ioannidis, Evgenios"]
[Result "0-1"]
[ECO "D31"]
[WhiteElo "2399"]
[BlackElo "2343"]
[Annotator "NA"]
[PlyCount "80"]
[EventDate "2018.08.20"]
[EventType "swiss"]
[EventCountry "LAT"]
[SourceTitle "playchess.com"]
[Source "ChessBase"]
[SourceQuality "1"]
[TimeControl "40/5400+30:1800+30"]

1. d4 {[%emt 0:00:00]} d5 {[%emt 0:00:00]} 2. c4 {[%emt 0:00:00]} e6 {[%emt 0:00:00]} 3. Nc3 {[%emt 0:00:00]} Be7 {[%emt 0:00:16]} 4. cxd5 {[%emt 0:03:28]} exd5 {[%emt 0:00:08]} 5. Bf4 {[%emt 0:00:03]} c6 {[%emt 0:00:39]} 6. e3 {[%emt 0:03:18]} Bf5 {[%emt 0:01:45]} 7. g4 {[%emt 0:06:06]} Be6 {[%emt 0:01:09]} 8. Bd3 {[%emt 0:01:54] D31: Queen's Gambit Declined: Semi-Slav without ...Nf6 (+ Marshall Gambit and Noteboom) and Exchange Variation lines without ...Nf6} (8. Qb3 Qb6 9. f3 g5 10. Be5 f6 11. Bg3 Qxb3 12. axb3 h5 13. gxh5 Rxh5 14. Bd3 Kf7 15. h4 f5 {½-½ (42) Kramnik,V (2800)-So,W (2799) Berlin 2018}) 8... Nd7 {[%emt 0:09:35]} 9. h3 {[%emt 0:02:18]} h5 {[%emt 0:03:57]} 10. gxh5 {[%emt 0:06:11]} Ndf6 {[%emt 0:00:11] LiveBook: 12 Games} 11. Qb3 {[%emt 0:09:56]} Qb6 {[%emt 0:05:00]} 12. Qc2 {[%emt 0:14:27]} Nxh5 {[%emt 0:01:33]} 13. Nge2 $146 {[%emt 0:00:17]} ({Predecessor:} 13. Be5 Ngf6 14. O-O-O Nd7 15. Bh2 Qa5 16. Kb1 {½-½ (27) Bjornsson,S (2067)-Span,P (2278) Fuegen 2006}) 13... Nxf4 {[%emt 0:09:32]} 14. Nxf4 {[%emt 0:04:03]} Bd7 {[%emt 0:04:37]} 15. O-O-O {[%emt 0:01:33]} Qa5 {[%emt 0:01:18]} 16. Kb1 {[%emt 0:04:32]} Nf6 $15 {[%emt 0:09:35]} 17. f3 {[%emt 0:14:12]} O-O-O {[%emt 0:04:21]} 18. e4 {[%emt 0:00:21]} Kb8 {[%emt 0:01:21]} 19. e5 {[%emt 0:07:03]} Nh5 {[%emt 0:01:59]} 20. Qh2 {[%emt 0:02:15]} Ka8 {[%emt 0:01:38]} 21. h4 {[%emt 0:05:53]} Rh6 {[%emt 0:06:12]} 22. Nce2 {[%emt 0:01:09]} Rdh8 {[%emt 0:02:14]} 23. Nxh5 {[%emt 0:06:42]} Rxh5 {[%emt 0:00:05]} 24. Qg2 {[%emt 0:00:39]} Bf8 {[%emt 0:20:36]} 25. f4 {[%emt 0:01:08]} Qd8 {[%emt 0:00:42]} 26. Qf3 {[%emt 0:02:16]} g6 {[%emt 0:06:00]} 27. Ng3 {[%emt 0:00:12]} Rxh4 {[%emt 0:00:03]} 28. f5 {[%emt 0:00:12]} gxf5 {[%emt 0:01:54]} 29. Nxf5 {[%emt 0:00:22]} Rxh1 {[%emt 0:01:54]} 30. Rxh1 {[%emt 0:00:02]} Rxh1+ {[%emt 0:02:13]} 31. Qxh1 {[%emt 0:00:01]} Bxf5 {[%emt 0:01:09]} 32. Bxf5 {[%emt 0:00:01]} Qg5 {[%emt 0:00:38]} 33. Bc2 {[%emt 0:03:53]} Qf4 {[%emt 0:01:21]} 34. Qg1 {[%emt 0:00:33]} a6 {[%emt 0:00:13]} 35. a3 {[%emt 0:00:30]} Ka7 {[%emt 0:00:21]} 36. Ka2 {[%emt 0:01:13]} Be7 {[%emt 0:00:07]} 37. Qd1 {[%emt 0:00:48]} Bd8 {[%emt 0:00:21]} 38. Kb3 {[%emt 0:00:31]} Bb6 {[%emt 0:00:10]} 39. Qe2 {[%emt 0:00:51]} Bxd4 {[%emt 0:00:12]} 40. e6 {[%emt 0:00:00]} fxe6 {[%emt 0:00:00]} 0-1

[Event "EYCC Open U18 2018"]
[Site "Riga"]
[Date "2018.08.24"]
[Round "5"]
[White "Kowalski, Igor"]
[Black "Mirzoyan, Davit T."]
[Result "1/2-1/2"]
[ECO "A40"]
[WhiteElo "2294"]
[BlackElo "2364"]
[Annotator "NA"]
[PlyCount "66"]
[EventDate "2018.08.20"]
[EventType "swiss"]
[EventCountry "LAT"]
[SourceTitle "playchess.com"]
[Source "ChessBase"]
[SourceQuality "1"]
[TimeControl "40/5400+30:1800+30"]

1. d4 {[%emt 0:00:00]} e6 {[%emt 0:00:00]} 2. c4 {[%emt 0:00:00]} b6 {[%emt 0:00:00]} 3. e4 {[%emt 0:00:00]} Bb7 {[%emt 0:00:00]} 4. Bd3 {[%emt 0:00:00]} Nc6 {[%emt 0:00:00]} 5. Ne2 {[%emt 0:00:00]} g6 {[%emt 0:00:03]} 6. Nbc3 {[%emt 0:02:53]} Bg7 {[%emt 0:00:12]} 7. Be3 {[%emt 0:00:34]} Nge7 {[%emt 0:00:13]} 8. Qd2 {[%emt 0:09:58]} d5 {[%emt 0:26:58] LiveBook: 3 Games} 9. cxd5 {[%emt 0:00:42]} exd5 {[%emt 0:00:05]} 10. e5 {[%emt 0:01:00]} Qd7 {[%emt 0:00:49]} 11. O-O {[%emt 0:17:43]} O-O {[%emt 0:04:31]} 12. Rac1 {[%emt 0:08:04]} Rad8 {[%emt 0:22:39]} 13. Bg5 {[%emt 0:06:11]} f6 {[%emt 0:04:30]} 14. exf6 {[%emt 0:00:38]} Bxf6 {[%emt 0:00:06]} 15. Bxf6 {[%emt 0:01:39]} Rxf6 $14 {[%emt 0:00:01]} 16. f3 {[%emt 0:01:53]} Rdf8 {[%emt 0:08:21]} 17. Rfe1 {[%emt 0:01:16]} Nd8 {[%emt 0:06:09]} 18. Ng3 {[%emt 0:02:53]} Nf7 {[%emt 0:09:40]} 19. Re2 {[%emt 0:01:33]} Re6 {[%emt 0:00:56]} 20. Rce1 {[%emt 0:01:10]} Rxe2 {[%emt 0:00:09]} 21. Qxe2 {[%emt 0:00:06]} Re8 {[%emt 0:03:45]} 22. Bb5 {[%emt 0:03:56]} c6 {[%emt 0:00:49]} 23. Ba4 {[%emt 0:00:04]} Kf8 {[%emt 0:01:03]} 24. Qd2 {[%emt 0:05:13]} Qd6 {[%emt 0:01:57]} 25. Qe3 {[%emt 0:05:14]} Bc8 {[%emt 0:00:44]} 26. Bb3 {[%emt 0:06:23]} Bd7 {[%emt 0:00:20]} 27. Qd3 {[%emt 0:01:48]} Ng8 {[%emt 0:01:45]} 28. Rxe8+ {[%emt 0:00:21]} Bxe8 {[%emt 0:00:09]} 29. Nge2 {[%emt 0:03:47]} Bd7 {[%emt 0:00:46]} 30. g3 {[%emt 0:02:29]} Nf6 {[%emt 0:01:56]} 31. Kg2 {[%emt 0:00:11]} Bc8 {[%emt 0:00:48]} 32. a3 {[%emt 0:00:45]} Qe7 {[%emt 0:00:57]} 33. Kf2 {[%emt 0:00:55]} Qd6 {[%emt 0:04:20]} 1/2-1/2

[Event "EYCC Open U18 2018"]
[Site "Riga"]
[Date "2018.08.24"]
[Round "5"]
[White "Garanin, Aleksei"]
[Black "Sousa, Andre Ventura"]
[Result "1/2-1/2"]
[ECO "D38"]
[WhiteElo "2203"]
[BlackElo "2376"]
[Annotator "NA"]
[PlyCount "76"]
[EventDate "2018.08.20"]
[EventType "swiss"]
[EventCountry "LAT"]
[SourceTitle "playchess.com"]
[Source "ChessBase"]
[SourceQuality "1"]
[TimeControl "40/5400+30:1800+30"]

1. d4 {[%emt 0:00:00]} Nf6 {[%emt 0:00:00]} 2. c4 {[%emt 0:00:00]} e6 {[%emt 0:00:00]} 3. Nf3 {[%emt 0:00:00]} d5 {[%emt 0:00:00]} 4. Nc3 {[%emt 0:00:00]} Bb4 {[%emt 0:01:26]} 5. cxd5 {[%emt 0:00:42]} exd5 {[%emt 0:00:06]} 6. Bg5 {[%emt 0:00:04]} Qd6 {[%emt 0:00:03] D38: Queen's Gambit Declined: Ragozin Defence (4 Nf3 Bb4)} (6... h6 7. Bh4 O-O 8. e3 Bf5 9. a3 Bxc3+ 10. bxc3 Nbd7 11. Be2 c5 12. O-O g5 13. Bg3 Ne4 14. c4 dxc4 15. Bxc4 {0-1 (49) Onischuk,A (2672)-Shankland,S (2671) Saint Louis 2018}) 7. e3 {[%emt 0:00:23]} Ne4 {[%emt 0:00:08]} 8. Rc1 {[%emt 0:11:14]} Nxg5 {[%emt 0:01:29]} 9. Nxg5 {[%emt 0:00:13]} c6 $146 {[%emt 0:13:44]} ({Predecessor:} 9... Bf5 10. Bd3 Bxd3 11. Qxd3 c6 12. Qf5 Qd7 13. Qe5+ Kf8 14. Nf3 {½-½ (22) Abhilash,R (2188)-Ashwath,R (2290) Abu Dhabi 2017}) 10. Bd3 {[%emt 0:04:31]} Qf6 {[%emt 0:03:43]} 11. Nf3 {[%emt 0:12:13]} O-O {[%emt 0:01:04]} 12. Qc2 {[%emt 0:05:12]} g6 {[%emt 0:00:09]} 13. O-O {[%emt 0:00:13]} Be6 {[%emt 0:11:30]} 14. Qb3 {[%emt 0:04:12]} Qe7 $1 {[%emt 0:06:52]} 15. Na4 {[%emt 0:02:05]} b6 {[%emt 0:09:36]} 16. Ne5 {[%emt 0:09:15]} Rc8 {[%emt 0:01:38]} 17. a3 {[%emt 0:02:15]} Bd6 {[%emt 0:01:29]} 18. f4 {[%emt 0:02:07]} f6 {[%emt 0:04:56]} 19. Nf3 {[%emt 0:00:33]} Bf7 {[%emt 0:01:55]} 20. Bb1 {[%emt 0:01:45]} Nd7 {[%emt 0:00:25]} 21. Qd3 $17 {[%emt 0:05:23]} Be6 {[%emt 0:17:54]} 22. Qd2 {[%emt 0:01:54]} Bg4 {[%emt 0:04:36]} 23. Ne1 {[%emt 0:07:53]} b5 {[%emt 0:01:08]} 24. Nc3 {[%emt 0:00:35]} Nb6 {[%emt 0:00:12]} 25. e4 {[%emt 0:13:25]} Nc4 {[%emt 0:00:06]} 26. Qf2 {[%emt 0:00:23]} dxe4 {[%emt 0:00:12]} 27. Nxe4 {[%emt 0:00:44]} Bf5 {[%emt 0:05:06]} 28. Nxd6 {[%emt 0:00:09]} Nxd6 {[%emt 0:00:04]} 29. Nd3 {[%emt 0:02:35]} Nc4 {[%emt 0:02:19]} 30. Rfe1 {[%emt 0:02:57]} Qd6 {[%emt 0:00:42]} 31. Nc5 {[%emt 0:00:35]} Re8 {[%emt 0:01:05]} 32. Ba2 {[%emt 0:03:12]} Qd5 {[%emt 0:01:46]} 33. h3 {[%emt 0:02:40]} Rad8 {[%emt 0:01:20]} 34. Nb7 {[%emt 0:02:04]} Rxe1+ {[%emt 0:02:07]} 35. Rxe1 {[%emt 0:00:01]} Rd7 {[%emt 0:00:08]} 36. Nc5 {[%emt 0:00:08]} Rd8 {[%emt 0:00:16]} 37. Nb7 {[%emt 0:00:04]} Rd7 {[%emt 0:00:03]} 38. Nc5 {[%emt 0:01:46]} Rd8 {[%emt 0:00:02]} 1/2-1/2

[Event "EYCC Open U18 2018"]
[Site "Riga"]
[Date "2018.08.26"]
[Round "6"]
[White "Ioannidis, Evgenios"]
[Black "Nothnagel, Marian Can"]
[Result "1-0"]
[ECO "A13"]
[WhiteElo "2343"]
[BlackElo "2338"]
[Annotator "NA"]
[PlyCount "67"]
[EventDate "2018.08.20"]
[EventType "swiss"]
[EventCountry "LAT"]
[SourceTitle "playchess.com"]
[Source "ChessBase"]
[SourceQuality "1"]
[TimeControl "40/5400+30:1800+30"]

1. c4 {[%emt 0:00:00]} e6 {[%emt 0:00:17]} 2. Nc3 {[%emt 0:01:41]} d5 {[%emt 0:00:45]} 3. d4 {[%emt 0:04:58]} Bb4 {[%emt 0:00:47]} 4. cxd5 {[%emt 0:05:51]} exd5 {[%emt 0:00:07]} 5. Qa4+ {[%emt 0:02:06]} Nc6 {[%emt 0:00:08]} 6. Nf3 {[%emt 0:01:04]} Nge7 {[%emt 0:02:23]} 7. Bf4 {[%emt 0:01:49]} O-O {[%emt 0:02:24]} 8. e3 {[%emt 0:00:12]} Bd7 {[%emt 0:01:20]} 9. Qb3 {[%emt 0:09:13]} a5 {[%emt 0:11:51]} 10. a3 {[%emt 0:12:19]} a4 {[%emt 0:02:24]} 11. Qc2 {[%emt 0:00:23]} Bf5 {[%emt 0:00:51]} 12. Bd3 {[%emt 0:00:40]} Bxc3+ $11 {[%emt 0:04:39]} 13. Qxc3 {[%emt 0:09:24]} Bxd3 {[%emt 0:00:35]} 14. Qxd3 {[%emt 0:00:05]} Ng6 {[%emt 0:00:10]} 15. Bg3 {[%emt 0:00:54]} Na5 {[%emt 0:04:13]} 16. Qb5 {[%emt 0:05:52]} c6 {[%emt 0:22:05]} 17. Qxa4 {[%emt 0:05:27]} Nc4 {[%emt 0:00:14]} 18. Qc2 {[%emt 0:10:49]} Qa5+ {[%emt 0:00:36]} 19. Nd2 {[%emt 0:00:05]} f5 {[%emt 0:01:14]} 20. O-O-O {[%emt 0:00:11]} b5 {[%emt 0:16:26]} 21. Nxc4 {[%emt 0:00:08]} bxc4 {[%emt 0:00:06]} 22. Bd6 {[%emt 0:00:22]} Rf7 {[%emt 0:00:32]} 23. f3 {[%emt 0:02:26]} Re8 {[%emt 0:00:12]} 24. Rhe1 {[%emt 0:00:49]} Qd8 {[%emt 0:00:50]} 25. Bb4 {[%emt 0:02:10]} Qg5 {[%emt 0:00:29]} 26. Kb1 {[%emt 0:01:44]} Nh4 {[%emt 0:10:10]} 27. e4 {[%emt 0:00:47]} fxe4 {[%emt 0:07:56]} 28. fxe4 {[%emt 0:00:03]} g6 {[%emt 0:00:40]} 29. Re2 {[%emt 0:11:40]} Rxe4 {[%emt 0:05:34]} 30. Rxe4 {[%emt 0:00:04]} dxe4 {[%emt 0:00:05]} 31. Qxe4 {[%emt 0:00:05]} Nxg2 {[%emt 0:01:52]} 32. Rg1 {[%emt 0:03:49]} Qe3 {[%emt 0:03:24]} 33. Qxg2 {[%emt 0:01:13]} Rf2 {[%emt 0:00:11]} 34. Qg3 {[%emt 0:00:44]} 1-0

[Event "EYCC Open U18 2018"]
[Site "Riga"]
[Date "2018.08.26"]
[Round "6"]
[White "Ozen, Bahadir"]
[Black "Haug, Johannes"]
[Result "1-0"]
[ECO "E53"]
[WhiteElo "2302"]
[BlackElo "2398"]
[Annotator "NA"]
[PlyCount "146"]
[EventDate "2018.08.20"]
[EventType "swiss"]
[EventCountry "LAT"]
[SourceTitle "playchess.com"]
[Source "ChessBase"]
[SourceQuality "1"]
[TimeControl "40/5400+30:1800+30"]

1. Nf3 {[%emt 0:00:00]} d5 {[%emt 0:00:00]} 2. d4 {[%emt 0:01:06]} Nf6 {[%emt 0:00:26]} 3. c4 {[%emt 0:00:38]} e6 {[%emt 0:00:30]} 4. Nc3 {[%emt 0:00:52]} Bb4 {[%emt 0:00:18]} 5. e3 {[%emt 0:01:50]} O-O {[%emt 0:02:38]} 6. Bd3 {[%emt 0:01:09]} c5 {[%emt 0:04:05]} 7. cxd5 {[%emt 0:01:33]} exd5 {[%emt 0:02:54] E53: Nimzo-Indian: Rubinstein: Main Line (4...0-0 5 Nf3 d5 6 Bd3 c5 7 0-0)} 8. dxc5 {[%emt 0:00:59]} Nbd7 {[%emt 0:03:20]} (8... Nc6 9. O-O Bg4 10. Na4 Ne4 11. a3 Bxc5 12. h3 Bxf3 13. gxf3 Qg5+ 14. Kh1 Qh4 15. fxe4 Qxh3+ {½-½ (25) So,W (2780)-Wei,Y (2729) chess.com INT 2018}) 9. Bd2 {[%emt 0:00:55]} Nxc5 {[%emt 0:03:03]} 10. Be2 {[%emt 0:00:54]} Ba5 {[%emt 0:19:34]} 11. O-O {[%emt 0:00:46]} a6 {[%emt 0:00:59]} 12. Nxd5 {[%emt 0:03:44]} Nxd5 {[%emt 0:13:32]} 13. Bxa5 {[%emt 0:01:12]} b6 $146 {[%emt 0:00:01]} ({Predecessor:} 13... Qxa5 14. Qxd5 Be6 15. Qh5 {1-0 (77) Vaisser,A (2505)-Pushkov,N (2325) Marianske Lazne 2016}) 14. Bc4 {[%emt 0:07:11]} bxa5 {[%emt 0:08:50]} 15. Qxd5 {[%emt 0:04:23]} Be6 {[%emt 0:08:38]} 16. Qxd8 {[%emt 0:03:32]} Rfxd8 {[%emt 0:00:02]} 17. Rfc1 {[%emt 0:01:38]} Nd3 {[%emt 0:05:22]} 18. Bxd3 {[%emt 0:01:12]} Rxd3 {[%emt 0:00:02]} 19. Rc2 {[%emt 0:07:05]} Rd6 {[%emt 0:05:05]} 20. Nd4 {[%emt 0:01:05]} Bd7 {[%emt 0:00:01]} 21. Rac1 {[%emt 0:11:42]} a4 {[%emt 0:02:03]} 22. h3 {[%emt 0:01:38]} Kf8 {[%emt 0:00:26]} 23. Rc7 {[%emt 0:00:06]} Rb8 {[%emt 0:00:53]} 24. R1c2 {[%emt 0:01:01]} Ke8 {[%emt 0:01:23]} 25. g4 {[%emt 0:01:03]} Rdb6 {[%emt 0:02:59]} 26. b3 {[%emt 0:00:12]} axb3 {[%emt 0:05:54]} 27. axb3 {[%emt 0:00:55]} g6 {[%emt 0:02:15]} 28. Kg2 {[%emt 0:01:34]} h5 {[%emt 0:00:23]} 29. Kg3 {[%emt 0:06:18]} hxg4 {[%emt 0:02:12]} 30. hxg4 {[%emt 0:00:01]} R8b7 {[%emt 0:00:15]} 31. Rxb7 {[%emt 0:11:11]} Rxb7 {[%emt 0:00:02]} 32. Kf4 {[%emt 0:00:01]} Ke7 {[%emt 0:01:09]} 33. f3 {[%emt 0:01:30]} Be8 {[%emt 0:02:27]} 34. Ra2 {[%emt 0:06:20]} Rb6 {[%emt 0:00:15]} 35. Ra5 {[%emt 0:00:07]} Bd7 {[%emt 0:00:49]} 36. Rc5 {[%emt 0:03:27]} Kd6 {[%emt 0:01:23]} 37. Rc3 {[%emt 0:00:27]} Rb7 {[%emt 0:01:34]} 38. Kg5 {[%emt 0:00:38]} Ke7 {[%emt 0:00:45]} 39. f4 {[%emt 0:03:34]} Ra7 {[%emt 0:02:29]} 40. e4 {[%emt 0:00:00]} a5 {[%emt 0:00:00]} 41. Rc5 {[%emt 0:13:46]} a4 {[%emt 0:07:43]} 42. bxa4 {[%emt 0:00:41]} Rxa4 {[%emt 0:00:47]} 43. Re5+ {[%emt 0:00:15]} Kf8 {[%emt 0:00:50]} 44. Rd5 {[%emt 0:00:37]} Ke7 {[%emt 0:03:51]} 45. f5 $16 {[%emt 0:04:25]} gxf5 {[%emt 0:02:55]} 46. gxf5 {[%emt 0:05:35]} f6+ {[%emt 0:02:03]} 47. Kf4 {[%emt 0:03:42]} Ra1 {[%emt 0:03:29]} 48. Nc2 {[%emt 0:00:30]} Ra4 {[%emt 0:00:33]} 49. Rd1 {[%emt 0:02:11]} Bc6 {[%emt 0:01:04]} 50. Nd4 {[%emt 0:00:01]} Bd7 {[%emt 0:00:07]} 51. Rd3 {[%emt 0:00:08]} Rc4 {[%emt 0:02:30]} 52. Ke3 {[%emt 0:00:27]} Ra4 {[%emt 0:00:43]} 53. Rb3 {[%emt 0:01:11]} Kd6 {[%emt 0:01:17]} 54. Rb8 {[%emt 0:00:01]} Ra3+ {[%emt 0:00:55]} 55. Kf4 {[%emt 0:00:02]} Ra4 {[%emt 0:00:26]} 56. Ne2 {[%emt 0:00:22]} Bc6 {[%emt 0:00:44]} 57. Ng3 {[%emt 0:00:01]} Ra8 {[%emt 0:01:23]} 58. Rb2 {[%emt 0:00:01]} Rh8 {[%emt 0:00:11]} 59. Rd2+ {[%emt 0:00:01]} Ke7 {[%emt 0:00:05]} 60. Rd4 {[%emt 0:00:49]} Rh4+ {[%emt 0:00:21]} 61. Kf3 {[%emt 0:00:01]} Rh8 {[%emt 0:00:32]} 62. Ne2 {[%emt 0:00:54]} Rd8 {[%emt 0:00:42]} 63. Rb4 {[%emt 0:00:27]} Ra8 {[%emt 0:01:28]} 64. Nd4 {[%emt 0:00:08]} Ra3+ {[%emt 0:00:17]} 65. Kf4 {[%emt 0:00:02]} Bd7 {[%emt 0:00:36]} 66. Rb6 {[%emt 0:00:41]} Ra4 {[%emt 0:00:28]} 67. Nc2 {[%emt 0:00:24]} Bc8 {[%emt 0:05:45]} 68. Nb4 {[%emt 0:01:34]} Kf7 {[%emt 0:00:09]} 69. Rb8 {[%emt 0:01:58]} Bd7 {[%emt 0:02:07]} 70. Rb7 {[%emt 0:00:29]} Kf8 {[%emt 0:01:19]} 71. Rb6 {[%emt 0:00:01]} Kf7 {[%emt 0:00:40]} 72. Nd5 {[%emt 0:00:00]} Rc4 {[%emt 0:00:23]} 73. Rb7 {[%emt 0:01:20]} Ke8 1-0